[Event "2nd Asian Nations Team Cup U14 2019"]
[Site "Shenzhen"]
[Date "2019.12.20"]
[Round "2.4"]
[White "Ulziikhishig Khishigbat"]
[Black "Huang, Yuen Tung"]
[Result "1-0"]
[ECO "E28"]
[WhiteElo "1525"]
[BlackElo "1293"]
[Annotator "NA RC"]
[PlyCount "103"]
[EventDate "2019.12.19"]
[EventType "team-tourn"]
[EventCountry "CHN"]
[SourceTitle "playchess.com"]
[Source "ChessBase"]
[SourceQuality "1"]
[TimeControl "5400+30"]

1. d4 {[%emt 0:00:00]} Nf6 {[%emt 0:00:00]} 2. c4 {[%emt 0:00:12]} e6 {[%emt 0:00:00]} 3. Nc3 {[%emt 0:00:07]} Bb4 {[%emt 0:00:00]} 4. e3 {[%emt 0:00:12]} O-O {[%emt 0:00:00]} 5. Bd3 {[%emt 0:00:04]} c5 6. Nge2 {[%emt 0:01:28]} b6 {[%emt 0:00:24]} 7. a3 {[%emt 0:00:30]} Bxc3+ {[%emt 0:00:06]} 8. bxc3 {[%emt 0:00:07]} Bb7 {[%emt 0:00:13]} 9. O-O {[%emt 0:00:09]} d6 {[%emt 0:00:39]} 10. f3 {[%emt 0:00:53]} Nbd7 {[%emt 0:04:03]} 11. e4 {[%emt 0:00:27]} h6 {[%emt 0:01:36]} 12. Ng3 {[%emt 0:02:32]} Re8 {[%emt 0:03:50]} 13. f4 {[%emt 0:09:23]} Rc8 {[%emt 0:05:05]} 14. e5 {[%emt 0:00:57]} dxe5 {[%emt 0:00:30]} 15. fxe5 {[%emt 0:02:02]} Nh7 {[%emt 0:02:32]} 16. Bxh7+ {[%emt 0:00:00]} Kxh7 {[%emt 0:03:30]} 17. Rxf7 {[%emt 0:00:00]} Re7 {[%emt 0:11:46]} 18. Rf1 {[%emt 0:04:00]} Qe8 {[%emt 0:05:30]} 19. Bf4 {[%emt 0:05:26]} Kh8 {[%emt 0:03:30]} 20. d5 {[%emt 0:03:29]} exd5 {[%emt 0:06:36]} 21. Nf5 {[%emt 0:00:19]} Re6 {[%emt 0:11:45]} 22. Nd6 {[%emt 0:01:29]} Rxd6 {[%emt 0:07:28]} 23. exd6 {[%emt 0:01:00]} dxc4 {[%emt 0:02:50]} 24. Qd2 {[%emt 0:01:31]} Qg6 {[%emt 0:03:36]} 25. Rae1 {[%emt 0:04:06]} Bc6 {[%emt 0:05:30]} 26. Re3 {[%emt 0:01:21]} Nf6 {[%emt 0:04:17]} 27. Rg3 {[%emt 0:00:40]} Qh7 {[%emt 0:05:30]} 28. Be5 {[%emt 0:06:31]} Nh5 {[%emt 0:04:32]} 29. Rg4 {[%emt 0:05:49]} Bd7 {[%emt 0:05:16]} 30. Rh4 {[%emt 0:01:20]} Qg6 {[%emt 0:00:29]} 31. Qe2 {[%emt 0:00:27]} Nf6 {[%emt 0:01:49]} 32. Bxf6 {[%emt 0:00:20]} gxf6 {[%emt 0:00:14]} 33. Qe7 {[%emt 0:00:35]} Bc6 {[%emt 0:01:23]} 34. Qxf6+ {[%emt 0:00:23]} Qxf6 {[%emt 0:01:02]} 35. Rxf6 {[%emt 0:00:48]} h5 {[%emt 0:00:58]} 36. Rxh5+ {[%emt 0:00:39]} Kg7 {[%emt 0:00:05]} 37. Re6 {[%emt 0:00:15]} Kf7 {[%emt 0:01:08]} 38. Re7+ {[%emt 0:00:34]} Kg6 {[%emt 0:00:12]} 39. Rhe5 {[%emt 0:01:28]} Rd8 {[%emt 0:00:24]} 40. g4 {[%emt 0:00:42]} Kf6 {[%emt 0:00:44]} 41. h4 {[%emt 0:00:24]} Rxd6 {[%emt 0:00:36]} 42. g5+ {[%emt 0:00:05]} Kg6 {[%emt 0:00:07]} 43. R7e6+ {[%emt 0:00:07]} Rxe6 {[%emt 0:00:08]} 44. Rxe6+ {[%emt 0:00:03]} Kh7 {[%emt 0:00:26]} 45. Rxc6 {[%emt 0:00:22]} Kg7 {[%emt 0:00:08]} 46. h5 {[%emt 0:00:04]} Kh7 {[%emt 0:00:09]} 47. Rc7+ {[%emt 0:00:11]} Kg8 {[%emt 0:00:06]} 48. g6 {[%emt 0:00:06]} Kf8 {[%emt 0:00:06]} 49. h6 {[%emt 0:00:11]} Ke8 {[%emt 0:00:07]} 50. g7 {[%emt 0:00:10]} Kd8 {[%emt 0:00:07]} 51. Rxa7 {[%emt 0:00:08]} Ke8 {[%emt 0:00:06]} 52. g8=Q# {[%emt 0:00:15]} 1-0

[Event "2nd Asian Nations Team Cup U14 2019"]
[Site "Shenzhen"]
[Date "2019.12.20"]
[Round "2.5"]
[White "Daneshvar, Bardiya"]
[Black "Yeoh, Yuan Hui"]
[Result "1-0"]
[ECO "D94"]
[WhiteElo "2330"]
[BlackElo "1738"]
[Annotator "RC"]
[PlyCount "51"]
[EventDate "2019.12.19"]
[EventType "team-tourn"]
[EventCountry "CHN"]
[SourceTitle "playchess.com"]
[Source "ChessBase"]
[SourceQuality "1"]
[TimeControl "5400+30"]

1. Nf3 {[%emt 0:00:00]} Nf6 {[%emt 0:00:00]} 2. c4 {[%emt 0:00:00]} c6 {[%emt 0:00:00]} 3. Nc3 {[%emt 0:00:14]} d5 {[%emt 0:00:03]} 4. e3 {[%emt 0:00:04]} g6 {[%emt 0:01:29]} 5. d4 {[%emt 0:00:36]} Bg7 {[%emt 0:00:11]} 6. Be2 {[%emt 0:00:11]} O-O {[%emt 0:00:18]} 7. O-O {[%emt 0:00:11]} Bg4 {[%emt 0:08:28]} 8. cxd5 {[%emt 0:07:31]} cxd5 {[%emt 0:00:20]} 9. Qb3 {[%emt 0:00:08]} b6 {[%emt 0:06:39]} 10. h3 {[%emt 0:00:44]} Bxf3 {[%emt 0:01:21]} 11. Bxf3 {[%emt 0:00:11]} e6 {[%emt 0:03:46]} 12. Be2 {[%emt 0:10:14]} Nc6 {[%emt 0:04:22]} 13. Qa4 {[%emt 0:01:11]} Qd6 {[%emt 0:04:31]} 14. b3 {[%emt 0:01:17]} Qc7 {[%emt 0:12:39]} 15. Ba3 {[%emt 0:03:02]} Rfd8 {[%emt 0:08:05]} 16. Rac1 {[%emt 0:00:30]} a6 {[%emt 0:20:24]} 17. Nxd5 {[%emt 0:00:58]} Rxd5 {[%emt 0:00:12]} 18. Qxc6 {[%emt 0:00:08]} Qxc6 {[%emt 0:00:59]} 19. Rxc6 {[%emt 0:00:06]} Ra5 {[%emt 0:00:04]} 20. Bb4 {[%emt 0:04:02]} Rxa2 {[%emt 0:03:09]} 21. Bf3 {[%emt 0:00:18]} a5 {[%emt 0:03:35]} 22. Bd6 {[%emt 0:01:18]} Nd7 {[%emt 0:04:07]} 23. Rc7 {[%emt 0:00:37]} Rd8 {[%emt 0:05:12]} 24. Be7 {[%emt 0:00:08]} Re8 {[%emt 0:00:38]} 25. Rxd7 {[%emt 0:00:09]} Rb2 {[%emt 0:00:33]} 26. Bd1 {[%emt 0:00:09]} 1-0

[Event "2nd Asian Nations Team Cup U14 2019"]
[Site "Shenzhen"]
[Date "2019.12.20"]
[Round "2.7"]
[White "Ebrahimi Herab, Hamidreza"]
[Black "Lee, Ryan"]
[Result "1-0"]
[ECO "D35"]
[WhiteElo "2053"]
[BlackElo "1615"]
[Annotator "NA RC"]
[PlyCount "69"]
[EventDate "2019.12.19"]
[EventType "team-tourn"]
[EventCountry "CHN"]
[SourceTitle "playchess.com"]
[Source "ChessBase"]
[SourceQuality "1"]
[TimeControl "5400+30"]

1. d4 {[%emt 0:00:00]} d5 {[%emt 0:00:00]} 2. c4 {[%emt 0:00:00]} e6 {[%emt 0:00:00]} 3. Nc3 {[%emt 0:00:00]} Nf6 {[%emt 0:00:22]} 4. cxd5 {[%emt 0:00:17]} exd5 {[%emt 0:00:36]} 5. Bg5 {[%emt 0:00:08]} Be7 {[%emt 0:00:04]} 6. e3 {[%emt 0:00:09]} O-O {[%emt 0:00:34]} 7. Bd3 {[%emt 0:00:08]} h6 {[%emt 0:00:22]} 8. Bh4 {[%emt 0:00:12]} b6 {[%emt 0:00:47]} 9. Nge2 {[%emt 0:00:14]} Bb7 {[%emt 0:01:19]} 10. f3 {[%emt 0:01:01]} c5 {[%emt 0:01:17]} 11. Qc2 {[%emt 0:02:00]} Nc6 {[%emt 0:02:51]} 12. a3 {[%emt 0:02:19]} Re8 {[%emt 0:04:44]} 13. O-O {[%emt 0:02:07]} c4 {[%emt 0:04:11]} 14. Bf5 {[%emt 0:01:17]} a6 {[%emt 0:07:41]} 15. Rad1 {[%emt 0:10:50]} g5 {[%emt 0:07:14]} 16. Bf2 {[%emt 0:00:26]} b5 {[%emt 0:00:50]} 17. e4 {[%emt 0:15:00]} b4 {[%emt 0:01:20]} 18. axb4 {[%emt 0:01:14]} Nxb4 {[%emt 0:01:01]} 19. Qd2 {[%emt 0:00:45]} Bc8 {[%emt 0:09:22]} 20. Bxc8 {[%emt 0:02:38]} Rxc8 {[%emt 0:00:39]} 21. e5 {[%emt 0:00:19]} Nh5 {[%emt 0:02:04]} 22. g4 {[%emt 0:06:12]} Ng7 {[%emt 0:00:23]} 23. Be3 {[%emt 0:05:12]} f5 {[%emt 0:02:30]} 24. f4 {[%emt 0:01:06]} Rf8 {[%emt 0:08:21]} 25. Ng3 {[%emt 0:04:28]} Qd7 {[%emt 0:09:58]} 26. fxg5 {[%emt 0:02:54]} hxg5 {[%emt 0:00:49]} 27. Bxg5 {[%emt 0:04:25]} fxg4 {[%emt 0:05:36]} 28. Bf6 {[%emt 0:02:31]} Bxf6 {[%emt 0:04:44]} 29. exf6 {[%emt 0:00:18]} Ne6 {[%emt 0:01:31]} 30. Qh6 {[%emt 0:01:48]} Qf7 {[%emt 0:06:23]} 31. Rf5 {[%emt 0:01:23]} Rc7 {[%emt 0:01:18]} 32. Re1 {[%emt 0:00:57]} Nc2 {[%emt 0:09:32]} 33. Rxe6 {[%emt 0:00:27]} Qxe6 {[%emt 0:00:24]} 34. Rg5+ {[%emt 0:00:12]} Kf7 {[%emt 0:00:21]} 35. Qg6# {[%emt 0:00:06]} 1-0

[Event "2nd Asian Nations Team Cup U14 2019"]
[Site "Shenzhen"]
[Date "2019.12.20"]
[Round "2.8"]
[White "Foo, Jing Er Claire"]
[Black "Khorshidi, Mohammad Javad"]
[Result "0-1"]
[ECO "E12"]
[WhiteElo "1546"]
[BlackElo "2094"]
[Annotator "NA RC"]
[PlyCount "138"]
[EventDate "2019.12.19"]
[EventType "team-tourn"]
[EventCountry "CHN"]
[SourceTitle "playchess.com"]
[Source "ChessBase"]
[SourceQuality "1"]
[TimeControl "5400+30"]

1. d4 {[%emt 0:00:00]} Nf6 {[%emt 0:00:00]} 2. c4 {[%emt 0:00:00]} e6 {[%emt 0:00:17]} 3. Nf3 {[%emt 0:00:05]} b6 4. a3 {[%emt 0:00:19]} Bb7 {[%emt 0:00:39]} 5. Nc3 {[%emt 0:00:22]} d5 {[%emt 0:00:35]} 6. Bg5 {[%emt 0:00:42]} Be7 {[%emt 0:01:32]} 7. e3 {[%emt 0:00:15]} O-O {[%emt 0:00:40]} 8. cxd5 {[%emt 0:01:16]} exd5 {[%emt 0:00:20]} 9. Be2 {[%emt 0:01:25]} Nbd7 {[%emt 0:01:28]} 10. O-O {[%emt 0:00:52]} c5 {[%emt 0:02:04]} 11. Rc1 {[%emt 0:04:19]} a6 {[%emt 0:01:58]} 12. Bd3 {[%emt 0:07:53]} g6 {[%emt 0:14:00]} 13. Qe2 {[%emt 0:08:25]} c4 {[%emt 0:03:05]} 14. Bc2 {[%emt 0:02:29]} Re8 {[%emt 0:13:06]} 15. Nd2 {[%emt 0:05:56]} Nf8 {[%emt 0:05:21]} 16. f4 {[%emt 0:11:09]} Ne6 {[%emt 0:16:20]} 17. Qf3 {[%emt 0:02:37]} b5 {[%emt 0:07:59]} 18. Bxf6 {[%emt 0:08:53]} Bxf6 {[%emt 0:00:03]} 19. f5 {[%emt 0:00:28]} Ng5 {[%emt 0:00:52]} 20. Qf4 {[%emt 0:01:12]} Nh3+ {[%emt 0:19:28]} 21. gxh3 {[%emt 0:01:28]} Bg5 {[%emt 0:00:01]} 22. Qf3 {[%emt 0:07:13]} Bxe3+ {[%emt 0:00:08]} 23. Kh1 {[%emt 0:03:22]} Bxd2 {[%emt 0:00:36]} 24. fxg6 {[%emt 0:07:21]} fxg6 {[%emt 0:03:10]} 25. Qf7+ {[%emt 0:12:14]} Kh8 {[%emt 0:00:02]} 26. Rcd1 {[%emt 0:04:15]} Bxc3 {[%emt 0:00:16]} 27. bxc3 {[%emt 0:00:02]} Qe7 {[%emt 0:00:56]} 28. Qxe7 {[%emt 0:02:27]} Rxe7 {[%emt 0:00:01]} 29. Rf3 {[%emt 0:00:13]} Kg7 {[%emt 0:02:38]} 30. Rdf1 {[%emt 0:00:13]} Bc8 {[%emt 0:01:25]} 31. h4 {[%emt 0:02:32]} Raa7 {[%emt 0:01:10]} 32. Kg1 {[%emt 0:02:20]} Rf7 {[%emt 0:01:45]} 33. Rxf7+ {[%emt 0:01:28]} Rxf7 {[%emt 0:00:01]} 34. Rxf7+ {[%emt 0:00:14]} Kxf7 {[%emt 0:00:08]} 35. h5 {[%emt 0:00:52]} Bf5 {[%emt 0:00:50]} 36. hxg6+ {[%emt 0:00:34]} Kxg6 {[%emt 0:00:16]} 37. Bd1 {[%emt 0:00:03]} Kg5 {[%emt 0:00:51]} 38. Kf2 {[%emt 0:00:15]} Kf4 {[%emt 0:00:21]} 39. Bf3 {[%emt 0:00:18]} Be4 {[%emt 0:00:17]} 40. Bd1 {[%emt 0:00:57]} a5 {[%emt 0:00:29]} 41. h3 {[%emt 0:01:52]} Bb1 {[%emt 0:01:52]} 42. h4 {[%emt 0:00:54]} Ke4 {[%emt 0:01:32]} 43. Ke2 {[%emt 0:00:12]} b4 {[%emt 0:00:55]} 44. axb4 {[%emt 0:01:04]} axb4 {[%emt 0:00:02]} 45. Kd2 {[%emt 0:00:28]} Bd3 {[%emt 0:02:06]} 46. Bh5 {[%emt 0:00:29]} Bf1 {[%emt 0:00:38]} 47. Bf7 {[%emt 0:00:29]} Bh3 {[%emt 0:00:15]} 48. Bg8 {[%emt 0:00:20]} Bf5 {[%emt 0:00:12]} 49. h5 {[%emt 0:00:29]} h6 {[%emt 0:00:26]} 50. Bf7 {[%emt 0:00:12]} b3 {[%emt 0:00:45]} 51. Kc1 {[%emt 0:00:24]} Bg4 {[%emt 0:00:21]} 52. Kb2 {[%emt 0:00:37]} Bf3 {[%emt 0:00:31]} 53. Be8 {[%emt 0:00:45]} Kf4 {[%emt 0:00:26]} 54. Bg6 {[%emt 0:00:20]} Kg5 {[%emt 0:00:27]} 55. Bf7 {[%emt 0:00:15]} Bxh5 {[%emt 0:00:51]} 56. Bxd5 {[%emt 0:00:06]} Be2 {[%emt 0:00:06]} 57. Bg2 {[%emt 0:01:04]} h5 {[%emt 0:00:18]} 58. Bh3 {[%emt 0:01:01]} Kf4 {[%emt 0:00:40]} 59. Be6 {[%emt 0:00:29]} h4 {[%emt 0:00:22]} 60. Bh3 {[%emt 0:00:36]} Bf3 {[%emt 0:00:22]} 61. Bf1 {[%emt 0:00:11]} Bd5 {[%emt 0:00:12]} 62. Kc1 {[%emt 0:01:01]} Kg3 {[%emt 0:00:10]} 63. Kd2 {[%emt 0:00:28]} h3 {[%emt 0:00:26]} 64. Be2 {[%emt 0:00:37]} h2 {[%emt 0:00:07]} 65. Ke1 {[%emt 0:00:25]} h1=Q+ {[%emt 0:00:08]} 66. Kd2 {[%emt 0:00:06]} Kf2 {[%emt 0:00:05]} 67. Bd1 {[%emt 0:00:35]} Qe1+ {[%emt 0:00:08]} 68. Kc1 {[%emt 0:00:06]} Qxc3+ {[%emt 0:00:05]} 69. Kb1 {[%emt 0:00:07]} Be4+ {[%emt 0:00:04]} 0-1

[Event "2nd Asian Nations Team Cup U14 2019"]
[Site "Shenzhen"]
[Date "2019.12.20"]
[Round "2.10"]
[White "Wei, Jianzhou"]
[Black "Wang, Xiaozhi"]
[Result "1-0"]
[ECO "E83"]
[WhiteElo "1755"]
[BlackElo "1872"]
[Annotator "NA RC"]
[PlyCount "81"]
[EventDate "2019.12.19"]
[EventType "team-tourn"]
[EventCountry "CHN"]
[SourceTitle "playchess.com"]
[Source "ChessBase"]
[SourceQuality "1"]
[TimeControl "5400+30"]

1. d4 {[%emt 6:21:14]} Nf6 {[%emt 0:03:20]} 2. c4 {[%emt 0:00:00]} g6 {[%emt 0:00:26]} 3. Nc3 {[%emt 0:00:00]} Bg7 {[%emt 0:00:06]} 4. e4 {[%emt 0:00:00]} d6 {[%emt 0:00:08]} 5. f3 {[%emt 0:00:00]} O-O {[%emt 0:00:07]} 6. Be3 {[%emt 0:00:00]} Nc6 {[%emt 0:00:04]} 7. Nge2 {[%emt 0:00:00]} a6 {[%emt 0:00:06]} 8. Qd2 {[%emt 0:00:00]} Na5 {[%emt 0:00:06]} 9. Nc1 {[%emt 0:00:00]} Nd7 {[%emt 0:00:04]} 10. Nb3 {[%emt 0:00:00]} c5 {[%emt 0:01:46]} 11. Nxa5 {[%emt 0:00:00]} Qxa5 {[%emt 0:00:13]} 12. Be2 {[%emt 0:00:00]} cxd4 {[%emt 0:09:53]} 13. Bxd4 {[%emt 0:00:00]} Ne5 {[%emt 0:00:04]} 14. O-O {[%emt 0:00:00]} Be6 {[%emt 0:05:38]} 15. f4 {[%emt 0:00:00]} Bh6 {[%emt 0:10:19]} 16. b3 {[%emt 0:07:18]} Nc6 {[%emt 0:21:07]} 17. Be3 {[%emt 0:00:00]} Bg7 {[%emt 0:00:16]} 18. Rac1 {[%emt 0:00:00]} Rfc8 {[%emt 0:05:35]} 19. Kh1 {[%emt 0:00:00]} b5 {[%emt 0:06:40]} 20. f5 {[%emt 0:00:00]} Bd7 {[%emt 0:01:45]} 21. Nd5 {[%emt 0:00:00]} Qxd2 {[%emt 0:00:11]} 22. Bxd2 {[%emt 0:00:00]} Rd8 {[%emt 0:17:11]} 23. Nb6 {[%emt 0:00:00]} Rab8 {[%emt 0:00:13]} 24. Nxd7 {[%emt 0:00:00]} Rxd7 {[%emt 0:00:02]} 25. cxb5 {[%emt 0:00:00]} Nd4 {[%emt 0:00:02]} 26. Bg4 {[%emt 0:00:00]} h5 {[%emt 0:01:55]} 27. Bh3 {[%emt 0:00:00]} Ra7 {[%emt 0:02:01]} 28. Be3 {[%emt 0:00:00]} Raa8 {[%emt 0:02:08]} 29. f6 {[%emt 0:00:00]} Bxf6 {[%emt 0:00:10]} 30. Rxf6 exf6 {[%emt 0:00:04]} 31. Bxd4 {[%emt 0:00:00]} axb5 {[%emt 0:01:15]} 32. Rc2 {[%emt 0:00:00]} Re8 {[%emt 0:02:22]} 33. Bxf6 {[%emt 0:00:00]} Rxe4 {[%emt 0:00:45]} 34. g3 {[%emt 0:00:00]} d5 {[%emt 0:03:54]} 35. Bd7 {[%emt 0:00:00]} b4 {[%emt 0:03:36]} 36. Kg2 {[%emt 0:00:00]} Re1 {[%emt 0:02:37]} 37. Rd2 {[%emt 0:00:00]} g5 {[%emt 0:01:19]} 38. Bxg5 {[%emt 0:00:00]} Ra1 {[%emt 0:00:00]} 39. Ba4 {[%emt 0:00:00]} Kg7 {[%emt 0:00:47]} 40. Be7 {[%emt 0:00:00]} Rb8 {[%emt 0:00:35]} 41. Bd6 {[%emt 0:00:00]} 1-0

[Event "2nd Asian Nations Team Cup U14 2019"]
[Site "Shenzhen"]
[Date "2019.12.20"]
[Round "2.11"]
[White "Lu, Miaoyi"]
[Black "Meng, Yihan"]
[Result "1/2-1/2"]
[ECO "A58"]
[WhiteElo "1787"]
[BlackElo "1787"]
[Annotator "NA RC"]
[PlyCount "117"]
[EventDate "2019.12.19"]
[EventType "team-tourn"]
[EventCountry "CHN"]
[SourceTitle "playchess.com"]
[Source "ChessBase"]
[SourceQuality "1"]
[TimeControl "5400+30"]

1. d4 {[%emt 0:00:00]} Nf6 {[%emt 0:00:00]} 2. c4 {[%emt 0:00:00]} c5 {[%emt 0:00:00]} 3. d5 {[%emt 0:00:00]} b5 4. cxb5 a6 5. bxa6 {[%emt 0:00:23]} g6 {[%emt 0:00:00]} 6. Nc3 {[%emt 0:00:02]} Bg7 {[%emt 0:01:17]} 7. e4 {[%emt 0:02:24]} O-O {[%emt 0:00:00]} 8. Nf3 {[%emt 0:01:36]} Qa5 {[%emt 0:03:49]} 9. Bd2 {[%emt 0:05:33]} Bxa6 {[%emt 0:00:12]} 10. Bxa6 {[%emt 0:01:33]} Qxa6 {[%emt 0:00:00]} 11. Qe2 {[%emt 0:01:16]} e6 {[%emt 0:01:10]} 12. Qxa6 {[%emt 0:04:13]} Nxa6 {[%emt 0:07:20]} 13. O-O {[%emt 0:03:02]} exd5 {[%emt 0:00:46]} 14. exd5 {[%emt 0:06:27]} Nb4 {[%emt 0:05:22]} 15. Be3 {[%emt 0:07:15]} Nd3 {[%emt 0:09:27]} 16. b3 {[%emt 0:01:53]} Ng4 {[%emt 0:00:00]} 17. Bd2 {[%emt 0:06:16]} Rfe8 {[%emt 0:02:45]} 18. h3 {[%emt 0:01:32]} Nge5 {[%emt 0:00:08]} 19. Nxe5 {[%emt 0:00:49]} Bxe5 {[%emt 0:07:03]} 20. a4 {[%emt 0:13:01]} Bd4 {[%emt 0:00:00]} 21. Rad1 {[%emt 0:15:33]} Nb2 {[%emt 0:03:05]} 22. Rb1 {[%emt 0:00:00]} Nd3 {[%emt 0:07:43]} 23. Rbd1 {[%emt 0:06:10]} Rab8 {[%emt 0:01:20]} 24. Nb5 {[%emt 0:00:00]} Re2 {[%emt 0:00:46]} 25. Be3 {[%emt 0:07:01]} Nb2 {[%emt 0:05:49]} 26. Rde1 {[%emt 0:00:00]} Rxe3 {[%emt 0:07:26]} 27. fxe3 {[%emt 0:00:00]} Be5 {[%emt 0:05:51]} 28. e4 {[%emt 0:00:40]} d6 {[%emt 0:03:42]} 29. Rf3 {[%emt 0:03:44]} c4 {[%emt 0:00:00]} 30. bxc4 {[%emt 0:00:00]} Nxa4 {[%emt 0:03:32]} 31. Ref1 {[%emt 0:00:26]} Rb7 {[%emt 0:05:41]} 32. Ra3 {[%emt 0:06:32]} Nb2 {[%emt 0:00:58]} 33. Ra8+ {[%emt 0:01:14]} Kg7 {[%emt 0:00:00]} 34. Rc8 {[%emt 0:02:22]} Nxc4 {[%emt 0:00:00]} 35. Rxc4 {[%emt 0:00:00]} Rxb5 {[%emt 0:00:00]} 36. Rc7 {[%emt 0:01:55]} Bf6 {[%emt 0:01:19]} 37. Rd7 {[%emt 0:00:00]} Rb6 {[%emt 0:02:06]} 38. g4 {[%emt 0:03:18]} g5 {[%emt 0:00:00]} 39. Rc1 {[%emt 0:02:24]} Be5 {[%emt 0:01:04]} 40. Rcc7 {[%emt 0:00:16]} Rb1+ {[%emt 0:00:14]} 41. Kf2 {[%emt 0:00:15]} Rb2+ {[%emt 0:00:31]} 42. Ke3 {[%emt 0:00:48]} Rb3+ {[%emt 0:00:18]} 43. Kd2 {[%emt 0:00:27]} Rf3 {[%emt 0:00:00]} 44. Ke2 {[%emt 0:02:20]} Rf4 {[%emt 0:00:11]} 45. Kd3 {[%emt 0:02:20]} Kg6 {[%emt 0:00:50]} 46. Rb7 {[%emt 0:02:42]} h6 {[%emt 0:00:00]} 47. Ke3 {[%emt 0:00:41]} Rf1 {[%emt 0:01:01]} 48. Ke2 {[%emt 0:00:00]} Rf4 {[%emt 0:00:00]} 49. Ke3 {[%emt 0:00:00]} Rf1 {[%emt 0:00:00]} 50. Re7 {[%emt 0:02:14]} Kg7 {[%emt 0:00:27]} 51. Red7 {[%emt 0:00:00]} Kg6 {[%emt 0:00:22]} 52. Ke2 {[%emt 0:00:00]} Rf4 {[%emt 0:00:00]} 53. Ke3 {[%emt 0:01:02]} Rf1 {[%emt 0:00:33]} 54. Ke2 {[%emt 0:00:00]} Rf4 {[%emt 0:00:00]} 55. Ke3 {[%emt 0:05:55]} Rf1 {[%emt 0:03:52]} 56. Ke2 {[%emt 0:00:00]} Rf4 {[%emt 0:00:00]} 57. Ke3 {[%emt 0:00:00]} Rf1 {[%emt 0:00:00]} 58. Ke2 {[%emt 0:00:00]} Rf4 {[%emt 0:00:00]} 59. Ke3 {[%emt 0:02:15]} 1/2-1/2

[Event "2nd Asian Nations Team Cup U14 2019"]
[Site "Shenzhen"]
[Date "2019.12.20"]
[Round "2.12"]
[White "Wang, Yuehan"]
[Black "Wu, Yixing"]
[Result "0-1"]
[ECO "B56"]
[WhiteElo "1724"]
[BlackElo "1767"]
[Annotator "NA RC"]
[PlyCount "124"]
[EventDate "2019.12.19"]
[EventType "team-tourn"]
[EventCountry "CHN"]
[SourceTitle "playchess.com"]
[Source "ChessBase"]
[SourceQuality "1"]
[TimeControl "5400+30"]

1. e4 {[%emt 0:00:00]} c5 {[%emt 0:00:00]} 2. Nf3 {[%emt 0:00:00]} d6 {[%emt 0:00:00]} 3. d4 {[%emt 0:00:00]} cxd4 4. Nxd4 {[%emt 0:00:00]} Nf6 {[%emt 0:00:00]} 5. Nc3 {[%emt 0:00:00]} Nc6 {[%emt 0:00:00]} 6. f3 {[%emt 0:00:02]} e5 {[%emt 0:00:15]} 7. Nb3 {[%emt 0:00:04]} Be6 {[%emt 0:00:05]} 8. Be3 {[%emt 0:00:09]} d5 {[%emt 0:01:08]} 9. exd5 {[%emt 0:01:35]} Nxd5 {[%emt 0:00:00]} 10. Nxd5 {[%emt 0:00:13]} Qxd5 {[%emt 0:00:00]} 11. Qxd5 {[%emt 0:01:01]} Bxd5 {[%emt 0:00:00]} 12. O-O-O {[%emt 0:00:06]} O-O-O {[%emt 0:00:00]} 13. c4 {[%emt 0:02:03]} Be6 {[%emt 0:00:50]} 14. Rxd8+ {[%emt 0:00:00]} Kxd8 {[%emt 0:00:42]} 15. Be2 {[%emt 0:00:00]} Kc7 {[%emt 0:02:40]} 16. Rd1 {[%emt 0:01:14]} Be7 {[%emt 0:06:05]} 17. Nc5 {[%emt 0:05:58]} Bf5 {[%emt 0:00:46]} 18. g4 {[%emt 0:03:45]} Bg6 {[%emt 0:01:32]} 19. h4 {[%emt 0:01:00]} Nd4 {[%emt 0:02:57]} 20. Bxd4 {[%emt 0:00:00]} exd4 {[%emt 0:01:39]} 21. Nb3 {[%emt 0:00:14]} Bxh4 {[%emt 0:01:15]} 22. f4 {[%emt 0:10:23]} Be4 {[%emt 0:09:17]} 23. Nxd4 {[%emt 0:01:36]} a6 {[%emt 0:01:44]} 24. Bf3 {[%emt 0:00:00]} Re8 {[%emt 0:09:05]} 25. Bh1 {[%emt 0:00:00]} Bf2 {[%emt 0:00:00]} 26. Nc2 {[%emt 0:03:34]} Bg3 {[%emt 0:00:00]} 27. f5 {[%emt 0:01:45]} Bf4+ {[%emt 0:00:00]} 28. Kb1 {[%emt 0:00:00]} Bxc2+ {[%emt 0:00:00]} 29. Kxc2 {[%emt 0:00:00]} Re2+ {[%emt 0:01:51]} 30. Kb3 {[%emt 0:03:16]} Be5 {[%emt 0:00:59]} 31. Rb1 {[%emt 0:00:50]} f6 {[%emt 0:01:20]} 32. Ka3 {[%emt 0:02:16]} Re3+ {[%emt 0:02:19]} 33. b3 {[%emt 0:00:00]} Rg3 {[%emt 0:02:07]} 34. Bd5 {[%emt 0:00:00]} Rxg4 {[%emt 0:01:46]} 35. Rh1 {[%emt 0:00:36]} h6 {[%emt 0:00:00]} 36. Rd1 {[%emt 0:01:07]} Bd6+ {[%emt 0:00:03]} 37. Kb2 {[%emt 0:03:24]} h5 {[%emt 0:03:25]} 38. Be6 {[%emt 0:00:00]} Rg2+ {[%emt 0:00:52]} 39. Kb1 {[%emt 0:01:50]} h4 {[%emt 0:07:32]} 40. c5 {[%emt 0:03:09]} Bxc5 {[%emt 0:00:00]} 41. Rd7+ {[%emt 0:00:43]} Kc6 {[%emt 0:00:00]} 42. Rd8 {[%emt 0:00:54]} Bd6 {[%emt 0:03:54]} 43. Rc8+ {[%emt 0:01:59]} Bc7 {[%emt 0:00:00]} 44. Rh8 {[%emt 0:00:23]} Rh2 {[%emt 0:01:31]} 45. Bc4 {[%emt 0:01:08]} h3 {[%emt 0:00:00]} 46. Bd3 {[%emt 0:01:04]} Kd5 {[%emt 0:00:15]} 47. Rh4 {[%emt 0:02:09]} Bg3 {[%emt 0:02:31]} 48. Rg4 {[%emt 0:04:30]} Rd2 {[%emt 0:00:53]} 49. Be4+ {[%emt 0:05:26]} Ke5 {[%emt 0:00:59]} 50. Bxb7 {[%emt 0:04:39]} Rd7 {[%emt 0:04:21]} 51. Bc6 {[%emt 0:02:18]} Rc7 {[%emt 0:02:17]} 52. Bf3 {[%emt 0:00:00]} Bf4 {[%emt 0:02:06]} 53. Rh4 {[%emt 0:00:00]} h2 {[%emt 0:00:08]} 54. Rh5 {[%emt 0:00:00]} Rc3 {[%emt 0:00:33]} 55. Bb7 {[%emt 0:03:02]} Rg3 {[%emt 0:01:01]} 56. Kc2 {[%emt 0:00:00]} Rg5 {[%emt 0:02:08]} 57. Rh7 {[%emt 0:01:41]} Kxf5 {[%emt 0:01:13]} 58. b4 {[%emt 0:00:00]} Rg1 {[%emt 0:01:16]} 59. a4 {[%emt 0:00:00]} Bh6 {[%emt 0:00:11]} 60. b5 {[%emt 0:00:00]} axb5 {[%emt 0:00:42]} 61. axb5 {[%emt 0:00:31]} Rc1+ {[%emt 0:02:14]} 62. Kd3 {[%emt 0:01:13]} h1=Q {[%emt 0:00:33]} 0-1